[Event "23rd ETCC Women 2021"]
[Site "Catez"]
[Date "2021.11.14"]
[Round "3.50"]
[White "Bejatovic, Bojana"]
[Black "Kolaric, Spela"]
[Result "0-1"]
[ECO "C55"]
[WhiteElo "2031"]
[BlackElo "2178"]
[Annotator "NA"]
[PlyCount "80"]
[EventDate "2021.11.08"]
[EventType "team-tourn"]
[EventCountry "SLO"]
[SourceTitle "playchess.com"]
[Source "ChessBase"]
[SourceQuality "1"]
[WhiteTeam "Macedonia"]
[BlackTeam "Slovenia"]
[WhiteTeamCountry "MKD"]
[BlackTeamCountry "SLO"]
[TimeControl "40/5400+30:1800+30"]

1. e4 {[%emt 0:00:04]} e5 {[%emt 0:00:16]} 2. Nf3 {[%emt 0:00:05]} Nc6 {
[%emt 0:00:13]} 3. Bc4 {[%emt 0:00:04]} Nf6 {[%emt 0:00:21]} 4. d3 {[%emt 0:00:
15]} Bc5 {[%emt 0:00:18]} 5. c3 {[%emt 0:00:10]} O-O {[%emt 0:00:26]} 6. h3 {
[%emt 0:02:20]} d5 {[%emt 0:02:45]} 7. exd5 {[%emt 0:01:12]} Nxd5 {[%emt 0:00:
39]} 8. O-O {[%emt 0:05:30]} Nb6 {[%emt 0:00:50]} 9. Bb5 {[%emt 0:16:02]} Bd6 {
[%emt 0:02:42]} 10. Nbd2 {[%emt 0:08:03]} Ne7 {[%emt 0:10:17]} 11. Nc4 {
[%emt 0:07:15]} c6 {[%emt 0:07:02]} 12. Nxb6 {[%emt 0:01:47]} axb6 {[%emt 0:05:
03]} 13. Bc4 {[%emt 0:00:17]} b5 {[%emt 0:00:25]} 14. Bb3 {[%emt 0:00:01]} Qc7
{[%emt 0:03:12]} 15. Qe2 {[%emt 0:06:59]} Bf5 {[%emt 0:11:48]} 16. Nh4 {
[%emt 0:05:53]} Bd7 {[%emt 0:13:56]} 17. Qe4 {[%emt 0:15:18]} Rae8 {[%emt 0:03:
42]} 18. Bg5 {[%emt 0:01:39]} Kh8 {[%emt 0:05:26]} 19. Qf3 {[%emt 0:04:42]} f6
{[%emt 0:03:38]} 20. Bd2 {[%emt 0:06:43]} g5 {[%emt 0:01:42]} 21. Qh5 {[%emt 0:
02:30]} gxh4 {[%emt 0:01:05]} 22. Bh6 {[%emt 0:00:15]} Ng6 {[%emt 0:01:41]} 23.
Bxf8 {[%emt 0:05:41]} Rxf8 {[%emt 0:01:55]} 24. Rae1 {[%emt 0:01:11]} Bc8 {
[%emt 0:01:35]} 25. Kh1 {[%emt 0:03:54]} Qg7 {[%emt 0:01:22]} 26. Rg1 {[%emt 0:
00:21]} Qd7 {[%emt 0:05:34]} 27. Re3 {[%emt 0:02:11]} Kg7 {[%emt 0:01:28]} 28.
d4 {[%emt 0:01:35]} Qf5 {[%emt 0:01:37]} 29. Qe2 {[%emt 0:01:38]} Nf4 {[%emt 0:
05:20]} 30. Qd1 {[%emt 0:00:47]} Kh8 {[%emt 0:02:13]} 31. Bc2 {[%emt 0:00:58]}
Qg5 {[%emt 0:00:37]} 32. Bb3 {[%emt 0:00:07]} Bf5 {[%emt 0:01:14]} 33. g4 {
[%emt 0:00:15]} Bc8 {[%emt 0:02:29]} 34. Qf3 {[%emt 0:00:40]} c5 {[%emt 0:02:
05]} 35. dxc5 {[%emt 0:00:39]} Bxc5 {[%emt 0:00:07]} 36. Ree1 {[%emt 0:00:36]}
b6 {[%emt 0:01:47]} 37. Kh2 {[%emt 0:00:19]} Qg7 {[%emt 0:00:32]} 38. Ref1 {
[%emt 0:00:56]} Bb7 {[%emt 0:00:15]} 39. Qd1 {[%emt 0:00:01]} Qe7 {[%emt 0:00:
25]} 40. Bc2 {[%emt 0:00:44]} e4 {[%emt 0:00:36]} 0-1

[Event "23rd ETCC Women 2021"]
[Site "Catez"]
[Date "2021.11.14"]
[Round "3.51"]
[White "Ruzic, Pia Marie"]
[Black "Trajkovska, Sanja"]
[Result "0-1"]
[ECO "A34"]
[WhiteElo "2049"]
[BlackElo "1960"]
[Annotator "NA"]
[PlyCount "98"]
[EventDate "2021.11.08"]
[EventType "team-tourn"]
[EventCountry "SLO"]
[SourceTitle "playchess.com"]
[Source "ChessBase"]
[SourceQuality "1"]
[WhiteTeam "Slovenia"]
[BlackTeam "Macedonia"]
[WhiteTeamCountry "SLO"]
[BlackTeamCountry "MKD"]
[TimeControl "40/5400+30:1800+30"]

1. c4 {[%emt 0:00:05]} c5 {[%emt 0:00:05]} 2. Nc3 {[%emt 0:00:12]} Nc6 {
[%emt 0:00:04]} 3. Nf3 {[%emt 0:00:14]} e5 {[%emt 0:00:08]} 4. e3 {[%emt 0:01:
00]} Nf6 {[%emt 0:00:12]} 5. d4 {[%emt 0:01:17]} cxd4 {[%emt 0:00:23]} 6. exd4
{[%emt 0:00:08]} e4 {[%emt 0:00:17]} 7. Ne5 {[%emt 0:01:29]} Bb4 {[%emt 0:00:
38]} 8. Nxc6 {[%emt 0:02:01]} bxc6 {[%emt 0:02:06]} 9. Be2 {[%emt 0:03:34]} O-O
{[%emt 0:04:46]} 10. O-O {[%emt 0:01:10]} Bxc3 {[%emt 0:05:13]} 11. bxc3 {
[%emt 0:00:08]} Qa5 {[%emt 0:00:58]} 12. Qc2 {[%emt 0:10:27]} Ba6 {[%emt 0:03:
58]} 13. Bf4 {[%emt 0:05:18]} d5 {[%emt 0:02:03]} 14. Bg5 {[%emt 0:03:47]} Nd7
{[%emt 0:02:26]} 15. Be7 {[%emt 0:20:06]} Rfe8 {[%emt 0:09:50]} 16. Bb4 {
[%emt 0:03:31]} Qc7 {[%emt 0:00:55]} 17. cxd5 {[%emt 0:06:04]} Bxe2 {[%emt 0:
20:59]} 18. d6 {[%emt 0:00:24]} Qb6 {[%emt 0:02:02]} 19. Qxe2 {[%emt 0:00:12]}
c5 {[%emt 0:09:51]} 20. dxc5 {[%emt 0:06:38]} Nxc5 {[%emt 0:00:07]} 21. Rfd1 {
[%emt 0:01:12]} Nd3 {[%emt 0:02:26]} 22. Rab1 {[%emt 0:04:55]} Qc6 {[%emt 0:01:
50]} 23. Qg4 {[%emt 0:09:18]} Re6 {[%emt 0:02:59]} 24. Rxd3 {[%emt 0:09:48]}
exd3 {[%emt 0:00:48]} 25. Qd4 {[%emt 0:00:18]} a5 {[%emt 0:13:34]} 26. Ba3 {
[%emt 0:02:51]} Qe4 {[%emt 0:01:54]} 27. Qxe4 {[%emt 0:00:39]} Rxe4 {[%emt 0:
00:04]} 28. f3 {[%emt 0:01:23]} Re2 {[%emt 0:01:25]} 29. Rd1 {[%emt 0:00:17]}
d2 {[%emt 0:01:58]} 30. Kf1 {[%emt 0:00:24]} Re1+ {[%emt 0:09:03]} 31. Rxe1 {
[%emt 0:00:05]} dxe1=Q+ {[%emt 0:00:58]} 32. Kxe1 {[%emt 0:00:00]} f5 {[%emt 0:
00:00]} 33. Kd2 {[%emt 0:06:03]} Kf7 {[%emt 0:00:36]} 34. Kd3 {[%emt 0:00:13]}
Ke6 {[%emt 0:00:30]} 35. Kd4 {[%emt 0:00:24]} Rb8 {[%emt 0:00:33]} 36. c4 {
[%emt 0:01:52]} Rb1 {[%emt 0:01:32]} 37. Kc5 {[%emt 0:00:36]} Kd7 {[%emt 0:00:
57]} 38. Kd5 {[%emt 0:00:49]} Rd1+ {[%emt 0:00:46]} 39. Ke5 {[%emt 0:00:30]} g6
{[%emt 0:00:32]} 40. Bc5 {[%emt 0:00:31]} Kc6 {[%emt 0:00:14]} 41. Ba3 {
[%emt 0:09:03]} Rd2 {[%emt 0:01:20]} 42. Bc1 {[%emt 0:06:42]} Rxd6 {[%emt 0:01:
37]} 43. a3 {[%emt 0:01:03]} Rd1 {[%emt 0:00:40]} 44. Bg5 {[%emt 0:00:46]} Kc5
{[%emt 0:00:52]} 45. g4 {[%emt 0:00:27]} fxg4 {[%emt 0:00:55]} 46. fxg4 {
[%emt 0:00:04]} Kxc4 {[%emt 0:00:04]} 47. Be7 {[%emt 0:05:44]} Re1+ {[%emt 0:
01:28]} 48. Kf6 {[%emt 0:00:08]} Rxe7 {[%emt 0:10:44]} 49. Kxe7 {[%emt 0:00:10]
} Kb3 {[%emt 0:00:03]} 0-1

[Event "23rd ETCC Women 2021"]
[Site "Catez"]
[Date "2021.11.14"]
[Round "3.52"]
[White "Manova, Ivana"]
[Black "Mihelic, Vesna"]
[Result "1-0"]
[ECO "C47"]
[WhiteElo "1809"]
[BlackElo "1912"]
[Annotator "ChessBase"]
[PlyCount "122"]
[EventDate "2021.11.08"]
[EventType "team-tourn"]
[EventCountry "SLO"]
[SourceTitle "playchess.com"]
[Source "ChessBase"]
[SourceQuality "1"]
[WhiteTeam "Macedonia"]
[BlackTeam "Slovenia"]
[WhiteTeamCountry "MKD"]
[BlackTeamCountry "SLO"]
[TimeControl "40/5400+30:1800+30"]

1. e4 {[%emt 0:00:07]} e5 {[%emt 0:00:07]} 2. Nf3 {[%emt 0:00:13]} Nc6 {
[%emt 0:00:07]} 3. Nc3 {[%emt 0:00:13]} Nf6 {[%emt 0:00:09]} 4. d4 {[%emt 0:00:
15]} exd4 {[%emt 0:00:12]} 5. Nxd4 {[%emt 0:00:06]} Bb4 {[%emt 0:00:08]} 6.
Nxc6 {[%emt 0:00:19]} bxc6 {[%emt 0:00:07]} 7. Bd3 {[%emt 0:00:19]} d5 {
[%emt 0:00:13]} 8. Bd2 {[%emt 0:00:22]} O-O {[%emt 0:06:08]} 9. O-O {[%emt 0:
00:44]} Bd6 {[%emt 0:13:12]} 10. h3 {[%emt 0:03:11]} Rb8 {[%emt 0:05:50]} 11.
Rb1 {[%emt 0:05:44]} Re8 {[%emt 0:04:11]} 12. Re1 {[%emt 0:03:14]} h6 {[%emt 0:
14:43]} 13. Qf3 {[%emt 0:05:09]} Be5 {[%emt 0:05:27]} 14. b3 {[%emt 0:25:09]}
d4 {[%emt 0:05:16]} 15. Na4 {[%emt 0:03:45]} Be6 {[%emt 0:06:15]} 16. Nb2 {
[%emt 0:05:21]} c5 {[%emt 0:02:11]} 17. a4 {[%emt 0:08:55]} c6 {[%emt 0:01:50]}
18. Bc4 {[%emt 0:02:14]} Nd7 {[%emt 0:06:00]} 19. Qh5 {[%emt 0:08:42]} Qf6 {
[%emt 0:02:57]} 20. Bxe6 {[%emt 0:06:46]} Rxe6 {[%emt 0:09:01]} 21. Qg4 {
[%emt 0:00:56]} Bc7 {[%emt 0:03:38]} 22. f4 {[%emt 0:03:59]} Qe7 {[%emt 0:01:
10]} 23. e5 {[%emt 0:01:47]} Kh8 {[%emt 0:02:13]} 24. a5 {[%emt 0:00:57]} Re8 {
[%emt 0:03:08]} 25. Nc4 {[%emt 0:02:31]} g6 {[%emt 0:02:59]} 26. Re2 {[%emt 0:
03:32]} h5 {[%emt 0:00:59]} 27. Qg3 {[%emt 0:01:01]} f5 {[%emt 0:01:35]} 28.
Qf3 {[%emt 0:03:10]} Qf7 {[%emt 0:01:01]} 29. Rbe1 {[%emt 0:02:29]} Rg8 {
[%emt 0:02:24]} 30. g4 {[%emt 0:01:43]} Kh7 {[%emt 0:01:10]} 31. Kf2 {[%emt 0:
01:48]} Qe7 {[%emt 0:00:12]} 32. Qg3 {[%emt 0:01:01]} Qf7 {[%emt 0:00:50]} 33.
g5 {[%emt 0:00:42]} Rge8 {[%emt 0:00:14]} 34. Kg2 {[%emt 0:00:31]} Nb8 {
[%emt 0:00:39]} 35. Nb2 {[%emt 0:00:28]} Qd7 {[%emt 0:00:11]} 36. Qf3 {[%emt 0:
00:32]} Qd5 {[%emt 0:00:40]} 37. Nd3 {[%emt 0:00:21]} Nd7 {[%emt 0:00:40]} 38.
Nb2 {[%emt 0:00:23]} Rb8 {[%emt 0:00:25]} 39. Kf2 {[%emt 0:00:37]} Kg7 {
[%emt 0:00:16]} 40. Kg3 {[%emt 0:00:36]} Kf7 {[%emt 0:00:48]} 41. Qd3 {[%emt 0:
01:43]} Rb5 {[%emt 0:07:01]} 42. Nc4 {[%emt 0:01:30]} Nf8 {[%emt 0:00:24]} 43.
Na3 {[%emt 0:02:44]} Rb8 {[%emt 0:02:22]} 44. Qa6 {[%emt 0:04:27]} Ra8 {
[%emt 0:03:40]} 45. Qb7 {[%emt 0:06:14]} Qd8 {[%emt 0:00:29]} 46. Nc4 {[%emt 0:
00:25]} Ke7 {[%emt 0:09:57]} 47. Nd6 {[%emt 0:04:13]} Kd7 {[%emt 0:00:17]} 48.
b4 {[%emt 0:01:30]} cxb4 {[%emt 0:07:46]} 49. Qxb4 {[%emt 0:00:26]} Bxd6 {
[%emt 0:01:15]} 50. Qxd4 {[%emt 0:03:51]} Kc7 {[%emt 0:00:47]} 51. exd6+ {
[%emt 0:00:33]} Qxd6 {[%emt 0:00:09]} 52. Qg7+ {[%emt 0:01:22]} Qd7 {[%emt 0:
00:11]} 53. Rxe6 {[%emt 0:03:08]} Qxg7 {[%emt 0:00:11]} 54. Re7+ {[%emt 0:00:
03]} Qxe7 {[%emt 0:00:06]} 55. Rxe7+ {[%emt 0:00:04]} Kd6 {[%emt 0:00:45]} 56.
Rg7 {[%emt 0:00:20]} a6 {[%emt 0:01:38]} 57. Bc3 {[%emt 0:01:50]} Re8 {[%emt 0:
01:18]} 58. Be5+ {[%emt 0:01:11]} Kc5 {[%emt 0:00:58]} 59. Rg8 {[%emt 0:01:02]}
Rd8 {[%emt 0:00:30]} 60. Bf6 {[%emt 0:02:05]} Rb8 {[%emt 0:00:53]} 61. Rxf8 {
[%emt 0:00:13]} Kd5 {[%emt 0:00:07]} 1-0

[Event "23rd ETCC Women 2021"]
[Site "Catez"]
[Date "2021.11.14"]
[Round "3.53"]
[White "Unuk, Laura"]
[Black "Toma, Katarzyna"]
[Result "1-0"]
[ECO "A26"]
[WhiteElo "2353"]
[BlackElo "2261"]
[Annotator "NA"]
[PlyCount "71"]
[EventDate "2021.11.08"]
[EventType "team-tourn"]
[EventCountry "SLO"]
[SourceTitle "playchess.com"]
[Source "ChessBase"]
[SourceQuality "1"]
[WhiteTeam "Slovenia"]
[BlackTeam "England"]
[WhiteTeamCountry "SLO"]
[BlackTeamCountry "ENG"]
[TimeControl "40/5400+30:1800+30"]

1. c4 {[%emt 0:00:05]} e5 {[%emt 0:00:13]} 2. Nc3 {[%emt 0:00:13]} d6 {[%emt 0:
00:17]} 3. e4 {[%emt 0:06:17]} Nc6 {[%emt 0:14:59]} 4. d3 {[%emt 0:01:52]} g6 {
[%emt 0:00:58]} 5. g3 {[%emt 0:03:57]} Bg7 {[%emt 0:01:07]} 6. Bg2 {[%emt 0:00:
09]} Nd4 {[%emt 0:00:53]} 7. b4 {[%emt 0:08:25]} Ne7 {[%emt 0:08:33]} 8. Nce2 {
[%emt 0:15:02]} c5 {[%emt 0:07:48]} 9. Nxd4 {[%emt 0:10:27]} cxd4 {[%emt 0:00:
09]} 10. h4 {[%emt 0:00:53]} h6 {[%emt 0:02:05]} 11. h5 {[%emt 0:08:02]} Be6 {
[%emt 0:02:06]} 12. Bh3 {[%emt 0:02:26]} Qd7 {[%emt 0:01:35]} 13. Bxe6 {
[%emt 0:03:31]} Qxe6 {[%emt 0:00:05]} 14. Bd2 {[%emt 0:04:46]} f5 {[%emt 0:01:
26]} 15. Qe2 {[%emt 0:04:00]} g5 {[%emt 0:13:24]} 16. f4 {[%emt 0:08:26]} g4 {
[%emt 0:05:11]} 17. Rh4 {[%emt 0:02:16]} exf4 {[%emt 0:07:02]} 18. exf5 {
[%emt 0:06:07]} Qxe2+ {[%emt 0:04:49]} 19. Nxe2 {[%emt 0:00:13]} Nxf5 {[%emt 0:
00:08]} 20. Rxg4 {[%emt 0:00:09]} f3 {[%emt 0:02:47]} 21. Nf4 {[%emt 0:01:33]}
O-O {[%emt 0:08:51]} 22. Kf2 {[%emt 0:01:09]} Rae8 {[%emt 0:02:09]} 23. Rg6 {
[%emt 0:00:47]} Re5 {[%emt 0:05:46]} 24. Re1 {[%emt 0:01:03]} Rfe8 {[%emt 0:06:
46]} 25. Rxe5 {[%emt 0:00:30]} Rxe5 {[%emt 0:00:10]} 26. Kxf3 {[%emt 0:02:24]}
Kf7 {[%emt 0:00:08]} 27. a4 {[%emt 0:01:25]} b6 {[%emt 0:00:33]} 28. Kf2 {
[%emt 0:01:20]} Bf8 {[%emt 0:00:42]} 29. Nd5 {[%emt 0:01:22]} Ne3 {[%emt 0:02:
29]} 30. Rf6+ {[%emt 0:03:19]} Kg7 {[%emt 0:00:25]} 31. Rg6+ {[%emt 0:00:21]}
Kf7 {[%emt 0:00:03]} 32. g4 {[%emt 0:01:05]} Nd1+ {[%emt 0:01:53]} 33. Kf3 {
[%emt 0:00:18]} Nb2 {[%emt 0:00:22]} 34. Rf6+ {[%emt 0:00:25]} Kg8 {[%emt 0:00:
53]} 35. Nf4 {[%emt 0:00:42]} Kh7 {[%emt 0:00:44]} 36. Rxf8 {[%emt 0:00:10]}
1-0

[Event "23rd ETCC Women 2021"]
[Site "Catez"]
[Date "2021.11.15"]
[Round "3.54"]
[White "Head, Louise"]
[Black "Urh, Zala"]
[Result "0-1"]
[ECO "E10"]
[WhiteElo "2069"]
[BlackElo "2332"]
[Annotator "ChessBase"]
[PlyCount "90"]
[EventDate "2021.11.08"]
[EventType "team-tourn"]
[EventCountry "SLO"]
[SourceTitle "playchess.com"]
[Source "ChessBase"]
[SourceQuality "1"]
[WhiteTeam "England"]
[BlackTeam "Slovenia"]
[WhiteTeamCountry "ENG"]
[BlackTeamCountry "SLO"]
[TimeControl "40/5400+30:1800+30"]

1. d4 {[%emt 0:00:03]} Nf6 {[%emt 0:00:31]} 2. c4 {[%emt 0:00:13]} e6 {[%emt 0:
00:14]} 3. Nf3 {[%emt 0:00:08]} c5 {[%emt 0:00:23]} 4. d5 {[%emt 0:03:25]} b5 {
[%emt 0:00:23]} 5. Bg5 {[%emt 0:01:59]} exd5 {[%emt 0:00:35]} 6. cxd5 {[%emt 0:
01:20]} h6 {[%emt 0:00:18]} 7. Bxf6 {[%emt 0:01:30]} Qxf6 {[%emt 0:00:10]} 8.
Qc2 {[%emt 0:01:42]} c4 {[%emt 0:02:17]} 9. e4 {[%emt 0:03:39]} Bb4+ {[%emt 0:
01:26]} 10. Nc3 {[%emt 0:03:50]} O-O {[%emt 0:07:34]} 11. Be2 {[%emt 0:02:04]}
a5 {[%emt 0:10:43]} 12. O-O {[%emt 0:04:28]} Ba6 {[%emt 0:06:31]} 13. Rad1 {
[%emt 0:36:21]} d6 {[%emt 0:07:04]} 14. Nd4 {[%emt 0:02:28]} Bxc3 {[%emt 0:01:
00]} 15. bxc3 {[%emt 0:01:42]} Nd7 {[%emt 0:01:40]} 16. f4 {[%emt 0:07:03]}
Rfe8 {[%emt 0:08:44]} 17. Nc6 {[%emt 0:04:28]} Qg6 {[%emt 0:02:10]} 18. Bf3 {
[%emt 0:04:42]} Nc5 {[%emt 0:03:09]} 19. Nxa5 {[%emt 0:00:56]} Nxe4 {[%emt 0:
25:41]} 20. Nc6 {[%emt 0:07:33]} Nc5 {[%emt 0:05:56]} 21. f5 {[%emt 0:05:47]}
Qg5 {[%emt 0:01:56]} 22. Nd4 {[%emt 0:01:40]} Na4 {[%emt 0:04:41]} 23. Rde1 {
[%emt 0:01:38]} Re3 {[%emt 0:00:25]} 24. h4 {[%emt 0:00:18]} Qe7 {[%emt 0:02:
18]} 25. f6 {[%emt 0:01:00]} Qe5 {[%emt 0:02:43]} 26. Qd2 {[%emt 0:00:52]} Rxe1
{[%emt 0:00:47]} 27. Rxe1 {[%emt 0:00:20]} Qxf6 {[%emt 0:00:20]} 28. g3 {
[%emt 0:01:00]} Nc5 {[%emt 0:01:08]} 29. Bd1 {[%emt 0:00:42]} Nd3 {[%emt 0:00:
39]} 30. Re3 {[%emt 0:00:24]} b4 {[%emt 0:00:38]} 31. Rf3 {[%emt 0:01:16]} Qe5
{[%emt 0:00:43]} 32. Nc6 {[%emt 0:00:19]} Qxc3 {[%emt 0:00:32]} 33. Qxc3 {
[%emt 0:01:12]} bxc3 {[%emt 0:00:02]} 34. Re3 {[%emt 0:00:41]} Bb5 {[%emt 0:01:
17]} 35. Bc2 {[%emt 0:00:29]} Rxa2 {[%emt 0:01:16]} 36. Re2 {[%emt 0:00:46]}
Ra1+ {[%emt 0:00:45]} 37. Kh2 {[%emt 0:00:07]} g6 {[%emt 0:00:31]} 38. Nd4 {
[%emt 0:00:17]} Bd7 {[%emt 0:00:33]} 39. Re3 {[%emt 0:00:27]} Ra2 {[%emt 0:00:
48]} 40. Kg1 {[%emt 0:00:09]} Ra1+ {[%emt 0:00:27]} 41. Kh2 {[%emt 0:08:39]}
Re1 {[%emt 0:00:37]} 42. Re2 {[%emt 0:01:14]} Rxe2+ {[%emt 0:00:51]} 43. Nxe2 {
[%emt 0:00:24]} Nb4 {[%emt 0:00:52]} 44. Be4 {[%emt 0:00:52]} c2 {[%emt 0:00:
15]} 45. Nc1 {[%emt 0:00:30]} f5 {[%emt 0:00:11]} 0-1

[Event "23rd ETCC Women 2021"]
[Site "Catez"]
[Date "2021.11.15"]
[Round "3.55"]
[White "Janzelj, Lara"]
[Black "Emelianova, Maria"]
[Result "1/2-1/2"]
[ECO "E73"]
[WhiteElo "2150"]
[BlackElo "2113"]
[Annotator "ChessBase"]
[PlyCount "61"]
[EventDate "2021.11.08"]
[EventType "team-tourn"]
[EventCountry "SLO"]
[SourceTitle "playchess.com"]
[Source "ChessBase"]
[SourceQuality "1"]
[WhiteTeam "Slovenia"]
[BlackTeam "England"]
[WhiteTeamCountry "SLO"]
[BlackTeamCountry "ENG"]
[TimeControl "40/5400+30:1800+30"]

1. d4 {[%emt 0:00:04]} Nf6 {[%emt 0:00:32]} 2. c4 {[%emt 0:00:11]} g6 {[%emt 0:
00:07]} 3. Nc3 {[%emt 0:00:15]} Bg7 {[%emt 0:00:05]} 4. e4 {[%emt 0:00:07]} d6
{[%emt 0:00:06]} 5. Be2 {[%emt 0:00:07]} O-O {[%emt 0:00:29]} 6. Be3 {[%emt 0:
00:33]} e5 {[%emt 0:00:48]} 7. d5 {[%emt 0:00:17]} Na6 {[%emt 0:00:22]} 8. g4 {
[%emt 0:00:33]} Nc5 {[%emt 0:00:19]} 9. f3 {[%emt 0:01:31]} h5 {[%emt 0:00:27]}
10. h3 {[%emt 0:07:09]} a5 {[%emt 0:00:52]} 11. Qd2 {[%emt 0:04:53]} Bd7 {
[%emt 0:05:28]} 12. Bg5 {[%emt 0:04:27]} Qe8 {[%emt 0:09:57]} 13. O-O-O {
[%emt 0:04:13]} a4 {[%emt 0:03:00]} 14. h4 {[%emt 0:07:54]} hxg4 {[%emt 0:13:
20]} 15. Bxf6 {[%emt 0:00:35]} gxf3 {[%emt 0:02:30]} 16. Bxg7 {[%emt 0:03:28]}
fxe2 {[%emt 0:00:39]} 17. Ngxe2 {[%emt 0:08:34]} Kxg7 {[%emt 0:00:11]} 18. h5 {
[%emt 0:01:14]} Rh8 {[%emt 0:02:26]} 19. Rdg1 {[%emt 0:04:05]} Qe7 {[%emt 0:10:
55]} 20. Qe3 {[%emt 0:11:37]} Rag8 {[%emt 0:08:25]} 21. Ng3 {[%emt 0:09:50]}
Kf8 {[%emt 0:03:17]} 22. h6 {[%emt 0:08:24]} Bg4 {[%emt 0:11:57]} 23. Rf1 {
[%emt 0:01:02]} Ke8 {[%emt 0:01:14]} 24. Rh2 {[%emt 0:04:25]} Rf8 {[%emt 0:01:
45]} 25. Rhf2 {[%emt 0:01:55]} Qh4 {[%emt 0:00:22]} 26. Rh1 {[%emt 0:00:09]}
Qe7 {[%emt 0:00:18]} 27. Rhf1 {[%emt 0:01:07]} Qh4 {[%emt 0:00:59]} 28. Rh1 {
[%emt 0:02:59]} Qe7 {[%emt 0:03:54]} 29. Rhf1 {[%emt 0:00:07]} Qh4 {[%emt 0:01:
10]} 30. Rh1 {[%emt 0:00:04]} Qe7 {[%emt 0:01:10]} 31. Rhf1 {[%emt 0:00:05]}
1/2-1/2

[Event "23rd ETCC Women 2021"]
[Site "Catez"]
[Date "2021.11.15"]
[Round "3.56"]
[White "Varney, Zoe"]
[Black "Rozman, Monika"]
[Result "0-1"]
[ECO "C54"]
[WhiteElo "1955"]
[BlackElo "2112"]
[Annotator "ChessBase"]
[PlyCount "86"]
[EventDate "2021.11.08"]
[EventType "team-tourn"]
[EventCountry "SLO"]
[SourceTitle "playchess.com"]
[Source "ChessBase"]
[SourceQuality "1"]
[WhiteTeam "England"]
[BlackTeam "Slovenia"]
[WhiteTeamCountry "ENG"]
[BlackTeamCountry "SLO"]
[TimeControl "40/5400+30:1800+30"]

1. e4 {[%emt 0:00:03]} e5 {[%emt 0:00:03]} 2. Nf3 {[%emt 0:00:06]} Nc6 {
[%emt 0:00:04]} 3. Bc4 {[%emt 0:00:05]} Bc5 {[%emt 0:00:04]} 4. c3 {[%emt 0:00:
05]} Nf6 {[%emt 0:00:03]} 5. d4 {[%emt 0:00:04]} exd4 {[%emt 0:00:05]} 6. e5 {
[%emt 0:00:06]} d5 {[%emt 0:00:11]} 7. Be2 {[%emt 0:00:11]} Ne4 {[%emt 0:00:06]
} 8. cxd4 {[%emt 0:00:07]} Bb6 {[%emt 0:00:31]} 9. Nc3 {[%emt 0:00:13]} O-O {
[%emt 0:01:48]} 10. O-O {[%emt 0:02:58]} Be6 {[%emt 0:19:54]} 11. Be3 {[%emt 0:
14:44]} h6 {[%emt 0:03:43]} 12. Na4 {[%emt 0:10:40]} Qd7 {[%emt 0:07:32]} 13.
Nh4 {[%emt 0:20:14]} Qe7 {[%emt 0:03:17]} 14. g3 {[%emt 0:04:59]} Bh3 {[%emt 0:
01:59]} 15. Ng2 {[%emt 0:10:32]} Rfe8 {[%emt 0:06:23]} 16. f3 {[%emt 0:06:14]}
Ng5 {[%emt 0:06:32]} 17. f4 {[%emt 0:01:34]} Ne4 {[%emt 0:00:30]} 18. f5 {
[%emt 0:07:09]} Qb4 {[%emt 0:01:16]} 19. a3 {[%emt 0:02:54]} Qe7 {[%emt 0:01:
19]} 20. Nxb6 {[%emt 0:04:16]} axb6 {[%emt 0:00:05]} 21. Bh5 {[%emt 0:01:28]}
Red8 {[%emt 0:03:52]} 22. f6 {[%emt 0:03:15]} gxf6 {[%emt 0:01:09]} 23. Bxh6 {
[%emt 0:01:23]} Nxe5 {[%emt 0:06:21]} 24. dxe5 {[%emt 0:01:04]} Qxe5 {[%emt 0:
00:16]} 25. Bf4 {[%emt 0:04:21]} Qxb2 {[%emt 0:01:16]} 26. Bxf7+ {[%emt 0:00:
40]} Kf8 {[%emt 0:03:33]} 27. Bh6+ {[%emt 0:02:24]} Ke7 {[%emt 0:00:15]} 28.
Nh4 {[%emt 0:01:55]} Kxf7 {[%emt 0:03:01]} 29. Qh5+ {[%emt 0:00:19]} Ke6 {
[%emt 0:00:32]} 30. Rae1 {[%emt 0:00:41]} Rxa3 {[%emt 0:03:48]} 31. Re2 {
[%emt 0:00:41]} Qd4+ {[%emt 0:01:26]} 32. Kh1 {[%emt 0:00:25]} Qe5 {[%emt 0:06:
49]} 33. Qxe5+ {[%emt 0:00:34]} fxe5 {[%emt 0:01:24]} 34. Rfe1 {[%emt 0:00:05]}
b5 {[%emt 0:02:49]} 35. Bc1 {[%emt 0:00:13]} Rb3 {[%emt 0:02:17]} 36. Kg1 {
[%emt 0:01:02]} c5 {[%emt 0:00:41]} 37. Ng2 {[%emt 0:00:35]} Bxg2 {[%emt 0:03:
48]} 38. Kxg2 {[%emt 0:00:07]} c4 {[%emt 0:00:32]} 39. Be3 {[%emt 0:00:49]} Ra8
{[%emt 0:00:50]} 40. g4 {[%emt 0:00:19]} c3 {[%emt 0:00:18]} 41. h4 {[%emt 0:
30:18]} b4 {[%emt 0:32:25]} 42. g5 {[%emt 0:00:21]} Rba3 {[%emt 0:02:23]} 43.
h5 {[%emt 0:00:00]} b3 {[%emt 0:04:27]} 0-1